fUSD/lending_fUSD_20240629
["ID","MTS","AMOUNT","RATE_DAILY","PERIOD"]
[330618859,1719627057425,-10369.58,0.00021917,3]
[330618860,1719627057435,-538.30980009,0.00021917,3]
[330618861,1719627057444,-557.61,0.00021917,3]
[330618862,1719627057454,-894.37,0.00021917,3]
[330618863,1719627057463,-612.87,0.00021917,3]
[330618864,1719627057472,-500.0,0.00021917,3]
[330618865,1719627057482,-1877.43,0.00021917,3]
[330618866,1719627057492,-612.06,0.00021917,3]
[330618867,1719627057501,-887.47,0.00021917,3]
[330618868,1719627057510,-500.0,0.00021917,3]
[330618869,1719627057519,-1785.58,0.00021917,3]
[330618870,1719627057530,-1261.75,0.00021917,3]
[330618871,1719627057539,-271.0047755,0.00021917,3]
[330618872,1719627057549,-500.0,0.00021917,3]
[330618873,1719627057558,-1137.65,0.00021917,3]
[330618874,1719627057567,-500.0,0.00021917,3]
[330618875,1719627057576,-665.34,0.00021917,3]
[330618876,1719627057585,-179.741825,0.00021917,2]
[330618877,1719627057594,-581.62,0.00021917,3]
[330618878,1719627057603,-633.55,0.00021917,3]
[330618879,1719627057612,-500.0,0.00021917,3]
[330618880,1719627057621,-1781.15,0.00021917,3]
[330618881,1719627057631,-500.0,0.00021917,3]
[330618882,1719627057640,-500.0,0.00021917,3]
[330618883,1719627057650,-18557.11,0.00021917,3]
[330618884,1719627057659,-500.0,0.00021917,3]
[330618885,1719627057668,-710.58,0.00021917,3]
[330618886,1719627057679,-3784.85,0.00021917,3]
[330618887,1719627057688,-2058.17,0.00021917,3]
[330618888,1719627057702,-587.0,0.00021917,3]
[330618889,1719627057711,-610.19,0.00021917,3]
[330618890,1719627057720,-1471.17,0.00021917,3]
[330618891,1719627057836,-1154.38,0.00021917,3]
[330618892,1719627057846,-500.0,0.00021917,3]
[330618893,1719627057855,-500.0,0.00021917,3]
[330618894,1719627057864,-500.0,0.00021917,3]
[330618895,1719627057873,-500.0,0.00021917,3]
[330618896,1719627057882,-500.0,0.00021917,3]
[330618897,1719627057891,-897.58,0.00021917,3]
[330618898,1719627057900,-2509.94,0.00021917,3]
[330618899,1719627057910,-500.0,0.00021917,3]
[330618900,1719627057919,-509.71,0.00021917,3]
[330618901,1719627057928,-426.62401513,0.00021917,3]
[330618902,1719627057937,-151.0,0.00021917,2]
[330618903,1719627057946,-500.0,0.00021917,3]
[330618904,1719627057956,-151.0,0.00021917,2]
[330618905,1719627057965,-500.0,0.00021917,3]
[330618906,1719627057975,-33081.82,0.00021917,3]
[330618907,1719627057984,-718.493884,0.00021917,2]
[330618908,1719627057994,-718.493884,0.00021917,2]
[330618909,1719627058003,-837.33,0.00021917,3]
[330618910,1719627058012,-633.76,0.00021917,3]
[330618911,1719627058022,-1639.19,0.00021917,3]
[330618912,1719627058031,-500.0,0.00021917,3]
[330618913,1719627058040,-500.0,0.00021917,3]
[330618914,1719627058050,-500.0,0.00021917,3]
[330618915,1719627058059,-223.16237836,0.00021917,3]
[330618916,1719627058069,-2172.74,0.00021917,3]
[330618917,1719627058078,-718.493884,0.00021917,2]
[330618918,1719627058087,-718.493884,0.00021917,2]
[330618919,1719627058096,-500.0,0.00021917,3]
[330618920,1719627058104,-1064.6,0.00021917,3]
[330618921,1719627058114,-151.0,0.00021917,2]
[330618922,1719627058123,-172.354424,0.00021917,2]
[330618923,1719627058132,-1320.28,0.00021917,3]
[330618924,1719627058141,-500.0,0.00021917,3]
[330618925,1719627058151,-502.55,0.00021917,3]
[330618926,1719627058160,-500.0,0.00021917,3]
[330618927,1719627058170,-604.59,0.00021917,3]
[330618928,1719627058179,-500.0,0.00021917,3]
[330618929,1719627058188,-956.54,0.00021917,3]
[330618930,1719627058198,-888.26,0.00021917,3]
[330618931,1719627058207,-2442.6,0.00021917,3]
[330618932,1719627058222,-500.0,0.00021917,3]
[330618933,1719627058233,-500.0,0.00021917,3]
[330618934,1719627058242,-1713.93,0.00021917,3]
[330618935,1719627058252,-500.0,0.00021917,3]
[330618936,1719627058261,-500.0,0.00021917,3]
[330618937,1719627058271,-3145.13,0.00021917,3]
[330618938,1719627058280,-223.502016,0.00021917,2]
[330618939,1719627058290,-223.502016,0.00021917,2]
[330618940,1719627058299,-500.0,0.00021917,3]
[330618941,1719627058309,-1621.11,0.00021917,3]
[330618942,1719627058318,-691.61,0.00021917,3]
[330618943,1719627058328,-525.2,0.00021917,3]
[330618944,1719627058337,-990.96,0.00021917,3]
[330618945,1719627058348,-2719.1,0.00021917,3]
[330618946,1719627058359,-503.07143145,0.00021917,3]
[330618947,1719627058370,-3411.06,0.00021917,3]
[330618948,1719627058379,-944.34,0.00021917,3]
[330618949,1719627058388,-223.502016,0.00021917,2]
[330618950,1719627058397,-633.25,0.00021917,3]
[330618951,1719627058406,-223.502016,0.00021917,2]
[330618952,1719627058415,-785.72,0.00021917,3]
[330618953,1719627058425,-487.171688,0.00021917,2]
[330618954,1719627058434,-1882.77,0.00021917,3]
[330618955,1719627058443,-895.91,0.00021917,3]
[330618956,1719627058453,-487.171688,0.00021917,2]
[330618957,1719627058462,-555.23,0.00021917,3]
[330618958,1719627058471,-2404.93,0.00021917,3]
[330618959,1719627058482,-487.171688,0.00021917,2]
[330618960,1719627058494,-500.0,0.00021917,3]
[330618961,1719627058503,-487.171688,0.00021917,2]
[330618962,1719627058513,-500.0,0.00021917,3]
[330618963,1719627058522,-500.0,0.00021917,3]
[330618964,1719627058533,-2319.25,0.00021917,3]
[330618965,1719627058542,-500.0,0.00021917,3]
[330618966,1719627058551,-517.26271999,0.00021917,3]
[330618967,1719627058560,-500.0,0.00021917,3]
[330618968,1719627058570,-1273.48,0.00021917,3]
[330618969,1719627058579,-500.0,0.00021917,3]
[330618970,1719627058588,-1331.77,0.00021917,3]
[330618971,1719627058597,-5545.09,0.00021917,3]
[330618972,1719627058606,-2113.29,0.00021917,3]
[330618973,1719627058615,-151.0,0.00021917,2]
[330618974,1719627058624,-151.0,0.00021917,2]
[330618975,1719627058633,-901.66,0.00021917,3]
[330618976,1719627058642,-4846.48,0.00021917,3]
[330618977,1719627058651,-500.0,0.00021917,3]
[330618978,1719627058661,-803.35,0.00021917,3]
[330618979,1719627058671,-151.456484,0.00021917,2]
[330618980,1719627058680,-1137.63,0.00021917,3]
[330618981,1719627058690,-1429.96,0.00021917,3]
[330618982,1719627058699,-771.49,0.00021917,3]
[330618983,1719627058708,-704.89,0.00021917,3]
[330618984,1719627058717,-500.0,0.00021917,3]
[330618985,1719627058726,-1297.03,0.00021917,3]
[330618986,1719627058735,-828.09,0.00021917,3]
[330618987,1719627058744,-500.0,0.00021917,3]
[330618988,1719627058754,-151.0,0.00021917,2]
[330618989,1719627058763,-366.996923,0.00021917,2]
[330618990,1719627058772,-151.0,0.00021917,2]
[330618991,1719627058781,-366.996923,0.00021917,2]
[330618992,1719627058791,-815.61,0.00021917,3]
[330618993,1719627058800,-4171.36,0.00021917,3]
[330618994,1719627058808,-1956.97,0.00021917,3]
[330618995,1719627058819,-2672.54,0.00021917,3]
[330618996,1719627058829,-366.996923,0.00021917,2]
[330618997,1719627058838,-151.0,0.00021917,2]
[330618998,1719627058847,-151.0,0.00021917,2]
[330618999,1719627058857,-366.996923,0.00021917,2]
[330619000,1719627058868,-151.0,0.00021917,2]
[330619001,1719627058878,-151.0,0.00021917,2]
[330619002,1719627058889,-500.0,0.00021917,3]
[330619003,1719627058899,-500.0,0.00021917,3]
[330619004,1719627058909,-1197.09,0.00021917,3]
[330619005,1719627058918,-1601.74,0.00021917,3]
[330619006,1719627058928,-574.85,0.00021917,3]
[330619007,1719627058939,-500.0,0.00021917,3]
[330619008,1719627058948,-3052.66,0.00021917,3]
[330619009,1719627058960,-2101.37,0.00021917,3]
[330619010,1719627058970,-822.9,0.00021917,3]
[330619011,1719627058979,-500.0,0.00021917,3]
[330619012,1719627058988,-500.0,0.00021917,3]
[330619013,1719627058997,-1049.15,0.00021917,3]
[330619014,1719627059006,-613.87,0.00021917,3]
[330619015,1719627059016,-643.4,0.00021917,3]
[330619016,1719627059025,-2172.21,0.00021917,3]
[330619017,1719627059034,-245.713047,0.00021917,2]
[330619018,1719627059043,-245.713047,0.00021917,2]
[330619019,1719627059053,-820.7,0.00021917,3]
[330619020,1719627059062,-500.0,0.00021917,3]
[330619021,1719627059073,-500.0,0.00021917,3]
[330619022,1719627059083,-245.713047,0.00021917,2]
[330619023,1719627059092,-3431.53,0.00021917,3]
[330619024,1719627059103,-767.44,0.00021917,3]
[330619025,1719627059113,-245.713047,0.00021917,2]
[330619026,1719627059124,-500.0,0.00021917,3]
[330619027,1719627059135,-500.0,0.00021917,3]
[330619028,1719627059146,-4693.97,0.00021917,3]
[330619029,1719627059155,-834.07,0.00021917,3]
[330619030,1719627059166,-500.0,0.00021917,3]
[330619031,1719627059176,-852.13,0.00021917,3]
[330619032,1719627059185,-261.630004,0.00021917,2]
[330619033,1719627059194,-1046.15,0.00021917,3]
[330619034,1719627059203,-261.630004,0.00021917,2]
[330619035,1719627059214,-269.301773,0.00021917,2]
[330619036,1719627059225,-1980.0,0.00021917,3]
[330619037,1719627059234,-269.301773,0.00021917,2]
[330619038,1719627059243,-500.0,0.00021917,3]
[330619039,1719627059253,-261.630004,0.00021917,2]
[330619040,1719627059263,-2048.63,0.00021917,3]
[330619041,1719627059273,-261.630004,0.00021917,2]
[330619042,1719627059282,-814.32,0.00021917,3]
[330619043,1719627059292,-269.301773,0.00021917,2]
[330619044,1719627059303,-269.301773,0.00021917,2]
[330619045,1719627059313,-841.53,0.00021917,3]
[330619046,1719627059322,-6794.95,0.00021917,3]
[330619047,1719627059331,-491.89938551,0.00021917,3]
[330619048,1719627059341,-928.19,0.00021917,3]
[330619049,1719627059350,-1396.36,0.00021917,3]
[330619050,1719627059360,-1568.08,0.00021917,3]
[330619051,1719627059369,-1200.31,0.00021917,3]
[330619052,1719627059378,-4917.97,0.00021917,3]
[330619053,1719627059387,-500.0,0.00021917,3]
[330619054,1719627059396,-1340.57,0.00021917,3]
[330619055,1719627059405,-1392.16,0.00021917,3]
[330619056,1719627059414,-500.0,0.00021917,3]
[330619057,1719627059424,-834.32,0.00021917,3]
[330619058,1719627059434,-500.0,0.00021917,3]
[330619059,1719627059443,-937.07,0.00021917,3]
[330619060,1719627059452,-3321.95,0.00021917,3]
[330619061,1719627059462,-520.03,0.00021917,3]
[330619062,1719627059472,-1427.03,0.00021917,3]
[330619063,1719627059481,-500.0,0.00021917,3]
[330619064,1719627059490,-618.82492563,0.00021917,3]
[330619065,1719627059499,-1194.32,0.00021917,3]
[330619066,1719627059508,-500.0,0.00021917,3]
[330619067,1719627059517,-1086.86,0.00021917,3]
[330619068,1719627059526,-853.18,0.00021917,3]
[330619069,1719627059536,-4418.28,0.00021917,3]
[330619070,1719627059545,-1142.23,0.00021917,3]
[330619071,1719627059554,-3439.24,0.00021917,3]
[330619072,1719627059563,-1065.32,0.00021917,3]
[330619073,1719627059572,-2461.47,0.00021917,3]
[330619074,1719627059581,-761.62,0.00021917,3]
[330619075,1719627059590,-812.78,0.00021917,3]
[330619076,1719627059599,-500.0,0.00021917,3]
[330619077,1719627059608,-500.0,0.00021917,3]
[330619078,1719627059617,-997.01,0.00021917,3]
[330619079,1719627059627,-500.0,0.00021917,3]
[330619080,1719627059636,-225.801559,0.00021917,2]
[330619081,1719627059645,-1050.78,0.00021917,3]
[330619082,1719627059654,-225.801559,0.00021917,2]
[330619083,1719627059663,-500.0,0.00021917,3]
[330619084,1719627059672,-1634.61,0.00021917,3]
[330619085,1719627059681,-542.41,0.00021917,3]
[330619086,1719627059691,-351.764822,0.00021917,2]
[330619087,1719627059699,-500.0,0.00021917,3]
[330619088,1719627059708,-351.764822,0.00021917,2]
[330619089,1719627059718,-500.0,0.00021917,3]
[330619090,1719627059727,-500.0,0.00021917,3]
[330619091,1719627059736,-500.0,0.00021917,3]
[330619092,1719627059745,-918.93,0.00021917,3]
[330619093,1719627059754,-351.764822,0.00021917,2]
[330619094,1719627059763,-351.764822,0.00021917,2]
[330619095,1719627059771,-225.801559,0.00021917,2]
[330619096,1719627059780,-225.801559,0.00021917,2]
[330619097,1719627059790,-3689.1,0.00021917,3]
[330619098,1719627059798,-3225.89,0.00021917,3]
[330619099,1719627059807,-500.0,0.00021917,3]
[330619100,1719627059816,-500.0,0.00021917,3]
[330619101,1719627059826,-2293.43,0.00021917,3]
[330619102,1719627059835,-3109.5,0.00021917,3]
[330619103,1719627059844,-2040.86,0.00021917,3]
[330619104,1719627059853,-1085.03,0.00021917,3]
[330619105,1719627059862,-1774.05,0.00021917,3]
[330619106,1719627059872,-1243.01,0.00021917,3]
[330619107,1719627059880,-500.0,0.00021917,3]
[330619108,1719627059889,-768.73,0.00021917,3]
[330619109,1719627059900,-2392.91,0.00021917,3]
[330619110,1719627059909,-500.0,0.00021917,3]
[330619111,1719627059918,-594.05,0.00021917,3]
[330619112,1719627059928,-920.74,0.00021917,3]
[330619113,1719627059938,-946.22,0.00021917,3]
[330619114,1719627059947,-586.61,0.00021917,3]
[330619115,1719627059956,-624.36,0.00021917,3]
[330619116,1719627059965,-500.0,0.00021917,3]
[330619117,1719627059975,-500.0,0.00021917,3]
[330619118,1719627059984,-795.21,0.00021917,3]
[330619119,1719627059993,-151.866127,0.00021917,2]
[330619120,1719627060002,-1881.94,0.00021917,3]
[330619121,1719627060011,-2285.28,0.00021917,3]
[330619122,1719627060021,-3619.58,0.00021917,3]
[330619123,1719627060030,-1520.51,0.00021917,3]
[330619124,1719627060040,-868.84,0.00021917,3]
[330619125,1719627060050,-500.0,0.00021917,3]
[330619126,1719627060059,-1010.86,0.00021917,3]
[330619127,1719627060068,-2503.74,0.00021917,3]
[330619128,1719627060078,-260.50443415,0.00021917,3]
[330619129,1719627060088,-500.0,0.00021917,3]
[330619130,1719627060098,-3824.57,0.00021917,3]
[330619131,1719627060107,-500.0,0.00021917,3]
[330619132,1719627060116,-500.45,0.00021917,3]
[330619133,1719627060126,-151.0,0.00021917,2]
[330619134,1719627060136,-151.0,0.00021917,2]
[330619135,1719627060146,-942.5,0.00021917,3]
[330619136,1719627060156,-500.0,0.00021917,3]
[330619137,1719627060166,-1229.38,0.00021917,3]
[330619138,1719627060179,-980.28,0.00021917,3]
[330619139,1719627060188,-1313.89,0.00021917,3]
[330619140,1719627060198,-500.0,0.00021917,3]
[330619141,1719627060208,-500.0,0.00021917,3]
[330619142,1719627060222,-500.0,0.00021917,3]
[330619143,1719627060233,-8787.8,0.00021917,3]
[330619144,1719627060243,-500.0,0.00021917,3]
[330619145,1719627060254,-3666.39,0.00021917,3]
[330619146,1719627060264,-3045.07,0.00021917,3]
[330619147,1719627060273,-500.0,0.00021917,3]
[330619148,1719627060283,-898.93,0.00021917,3]
[330619149,1719627060293,-500.0,0.00021917,3]
[330619150,1719627060304,-313.55892111,0.00021917,3]
[330619151,1719627060314,-2798.12,0.00021917,3]
[330619152,1719627060323,-1468.3,0.00021917,3]
[330619153,1719627060332,-1009.14,0.00021917,3]
[330619154,1719627060342,-532.94,0.00021917,3]
[330619155,1719627060351,-500.0,0.00021917,3]
[330619156,1719627060360,-1161.65,0.00021917,3]
[330619157,1719627060369,-521.52,0.00021917,3]
[330619158,1719627060378,-851.1,0.00021917,3]
[330619159,1719627060389,-500.0,0.00021917,3]
[330619160,1719627060398,-500.0,0.00021917,3]
[330619161,1719627060408,-500.22,0.00021917,3]
[330619162,1719627060417,-500.0,0.00021917,3]
[330619163,1719627060428,-500.0,0.00021917,3]
[330619164,1719627060438,-151.0,0.00021917,2]
[330619165,1719627060448,-500.0,0.00021917,3]
[330619166,1719627060457,-295.29244621,0.00021917,3]
[330619167,1719627060466,-500.0,0.00021917,3]
[330619168,1719627060475,-1493.78,0.00021917,3]
[330619169,1719627060484,-746.04,0.00021917,3]
[330619170,1719627060493,-500.0,0.00021917,3]
[330619171,1719627060503,-500.0,0.00021917,3]
[330619172,1719627060511,-500.0,0.00021917,3]
[330619173,1719627060521,-676.58,0.00021917,3]
[330619174,1719627060530,-1479.86,0.00021917,3]
[330619175,1719627060539,-3732.99,0.00021917,3]
[330619176,1719627060549,-1098.3,0.00021917,3]
[330619177,1719627060558,-500.0,0.00021917,3]
[330619178,1719627060567,-500.0,0.00021917,3]
[330619179,1719627060576,-500.0,0.00021917,3]
[330619180,1719627060585,-500.0,0.00021917,3]
[330619181,1719627060595,-234.035268,0.00021917,2]
[330619182,1719627060604,-234.035268,0.00021917,2]
[330619183,1719627060613,-500.0,0.00021917,3]
[330619184,1719627060622,-3985.31,0.00021917,3]
[330619185,1719627060632,-234.035268,0.00021917,2]
[330619186,1719627060641,-628.8194956,0.00021917,3]
[330619187,1719627060650,-2587.92,0.00021917,3]
[330619188,1719627060659,-2483.43,0.00021917,3]
[330619189,1719627060668,-500.0,0.00021917,3]
[330619190,1719627060681,-500.0,0.00021917,3]
[330619191,1719627060690,-234.035268,0.00021917,2]
[330619192,1719627060702,-500.0,0.00021917,3]
[330619193,1719627060712,-500.0,0.00021917,3]
[330619194,1719627060721,-1101.13,0.00021917,3]
[330619195,1719627060730,-154.587354,0.00021917,2]
[330619196,1719627060739,-3341.91,0.00021917,3]
[330619197,1719627060748,-1273.19,0.00021917,3]
[330619198,1719627060758,-500.0,0.00021917,3]
[330619199,1719627060767,-500.0,0.00021917,3]
[330619200,1719627060777,-966.87,0.00021917,3]
[330619201,1719627060786,-1784.21,0.00021917,3]
[330619202,1719627060796,-500.0,0.00021917,3]
[330619203,1719627060806,-500.0,0.00021917,3]
[330619204,1719627060815,-1526.22,0.00021917,3]
[330619205,1719627060825,-1024.62,0.00021917,3]
[330619206,1719627060834,-10584.5,0.00021917,3]
[330619207,1719627060843,-522.15,0.00021917,3]
[330619208,1719627060852,-3290.26,0.00021917,3]
[330619209,1719627060862,-4981.22,0.00021917,3]
[330619210,1719627060871,-500.0,0.00021917,3]
[330619211,1719627060880,-228.475536,0.00021917,2]
[330619212,1719627060889,-228.475536,0.00021917,2]
[330619213,1719627060898,-500.0,0.00021917,3]
[330619214,1719627060907,-500.0,0.00021917,3]
[330619215,1719627060916,-816.48,0.00021917,3]
[330619216,1719627060929,-771.58,0.00021917,3]
[330619217,1719627060938,-3948.94,0.00021917,3]
[330619218,1719627060947,-1045.3,0.00021917,3]
[330619219,1719627060957,-604.06,0.00021917,3]
[330619220,1719627060967,-3196.14,0.00021917,3]
[330619221,1719627060976,-1593.48,0.00021917,3]
[330619222,1719627060985,-699.55,0.00021917,3]
[330619223,1719627060994,-500.0,0.00021917,3]
[330619224,1719627061003,-1995.52,0.00021917,3]
[330619225,1719627061012,-624.15,0.00021917,3]
[330619226,1719627061022,-694.09,0.00021917,3]
[330619227,1719627061031,-228.475536,0.00021917,2]
[330619228,1719627061040,-228.475536,0.00021917,2]
[330619229,1719627061049,-507.29,0.00021917,3]
[330619230,1719627061058,-151.0,0.00021917,2]
[330619231,1719627061068,-500.0,0.00021917,3]
[330619232,1719627061078,-151.0,0.00021917,2]
[330619233,1719627061087,-1775.43,0.00021917,3]
[330619234,1719627061097,-2447.91,0.00021917,3]
[330619235,1719627061106,-4576.9,0.00021917,3]
[330619236,1719627061116,-1261.24,0.00021917,3]
[330619237,1719627061125,-500.0,0.00021917,3]
[330619238,1719627061134,-500.0,0.00021917,3]
[330619239,1719627061144,-500.0,0.00021917,3]
[330619240,1719627061153,-2643.06,0.00021917,3]
[330619241,1719627061163,-1995.02,0.00021917,3]
[330619242,1719627061172,-1321.7,0.00021917,3]
[330619243,1719627061182,-1581.54,0.00021917,3]
[330619244,1719627061192,-3486.0,0.00021917,3]
[330619245,1719627061202,-644.15,0.00021917,3]
[330619246,1719627061214,-9818.26,0.00021917,3]
[330619247,1719627061225,-500.0,0.00021917,3]
[330619248,1719627061235,-500.0,0.00021917,3]
[330619249,1719627061244,-3842.01,0.00021917,3]
[330619250,1719627061255,-995.97,0.00021917,3]
[330619251,1719627061264,-500.0,0.00021917,3]
[330619252,1719627061274,-500.0,0.00021917,3]
[330619253,1719627061283,-1226.03,0.00021917,3]
[330619254,1719627061295,-1641.42,0.00021917,3]
[330619255,1719627061304,-2881.55,0.00021917,3]
[330619256,1719627061314,-2197.08,0.00021917,3]
[330619257,1719627061323,-3064.02,0.00021917,3]
[330619258,1719627061332,-967.11,0.00021917,3]
[330619259,1719627061343,-500.0,0.00021917,3]
[330619260,1719627061353,-3793.1,0.00021917,3]
[330619261,1719627061363,-943.91,0.00021917,3]
[330619262,1719627061373,-1032.35,0.00021917,3]
[330619263,1719627061383,-1657.51,0.00021917,3]
[330619264,1719627061392,-716.47,0.00021917,3]
[330619265,1719627061401,-3011.35,0.00021917,3]
[330619266,1719627061410,-500.0,0.00021917,3]
[330619267,1719627061420,-500.0,0.00021917,3]
[330619268,1719627061430,-1989.6,0.00021917,3]
[330619269,1719627061439,-500.0,0.00021917,3]
[330619270,1719627061448,-69053.12,0.00021917,3]
[330619271,1719627061457,-1937.59,0.00021917,3]
[330619272,1719627061466,-2640.21,0.00021917,3]
[330619273,1719627061475,-2767.29,0.00021917,3]
[330619274,1719627061484,-500.0,0.00021917,3]
[330619275,1719627061494,-2224.38,0.00021917,3]
[330619276,1719627061503,-552.79,0.00021917,3]
[330619277,1719627061513,-1250.16,0.00021917,3]
[330619278,1719627061522,-1615.74,0.00021917,3]
[330619279,1719627061532,-500.0,0.00021917,3]
[330619280,1719627061541,-500.0,0.00021917,3]
[330619281,1719627061550,-500.0,0.00021917,3]
[330619282,1719627061560,-159.084663,0.00021917,2]
[330619283,1719627061569,-997.69,0.00021917,3]
[330619284,1719627061579,-216.84980535,0.00021917,2]
[330619285,1719627061591,-6222.98,0.00021917,3]
[330619286,1719627061601,-960.01,0.00021917,3]
[330619287,1719627061611,-813.88,0.00021917,3]
[330619288,1719627061621,-2156.6,0.00021917,3]
[330619289,1719627061632,-757.14,0.00021917,3]
[330619290,1719627061641,-1409.17,0.00021917,3]
[330619291,1719627061651,-151.0,0.00021917,2]
[330619292,1719627061660,-1158.42,0.00021917,3]
[330619293,1719627061669,-500.0,0.00021917,3]
[330619294,1719627061680,-1297.68,0.00021917,3]
[330619295,1719627061689,-2457.91,0.00021917,3]
[330619296,1719627061699,-1226.77,0.00021917,3]
[330619297,1719627061708,-500.0,0.00021917,3]
[330619298,1719627061718,-500.0,0.00021917,3]
[330619299,1719627061727,-500.0,0.00021917,3]
[330619300,1719627061736,-613.28,0.00021918,2]
[330619301,1719627061746,-783.86,0.00021918,2]
[330619302,1719627061756,-195.19,0.00021918,2]
[330619303,1719627061766,-150.0,0.00021918,2]
[330619304,1719627061778,-150.0,0.00021918,2]
[330619305,1719627061787,-150.0,0.00021919,2]
[330619306,1719627061797,-150.0,0.00021921,2]
[330619307,1719627061808,-181.0,0.0002194,3]
[330619308,1719627061819,-150.0,0.00021944,2]
[330619309,1719627061829,-150.0,0.00021959,2]
[330619310,1719627061839,-2017.7706914,0.00021962,2]
[330619311,1719627061848,-155.0,0.00021981,2]
[330619312,1719627061858,-1500.0,0.00021982,2]
[330619313,1719627061868,-150.0,0.00021989,2]
[330619314,1719627061877,-150.0,0.00021997,2]
[330619315,1719627061886,-33000.0,0.00022,4]
[330619316,1719627062013,-150.0,0.00022007,2]
[330619317,1719627062025,-1138.99284642,0.00022025,3]
[330619318,1719627062035,-150.0,0.00022026,10]
[330619319,1719627062045,-540.09807413,0.00022027,3]
[330619320,1719627062055,-500.0,0.00022027,3]
[330619321,1719627062064,-543.8945027,0.00022027,3]
[330619322,1719627062074,-439.32278547,0.00022027,3]
[330619323,1719627062083,-500.0,0.00022027,3]
[330619324,1719627062092,-500.0,0.00022027,3]
[330619325,1719627062102,-500.0,0.00022027,3]
[330619326,1719627062111,-500.0,0.00022027,3]
[330619327,1719627062121,-955.72,0.00022027,3]
[330619328,1719627062131,-500.0,0.00022027,3]
[330619329,1719627062140,-982.53,0.00022027,3]
[330619330,1719627062150,-797.9,0.00022027,3]
[330619331,1719627062159,-500.0,0.00022027,3]
[330619332,1719627062169,-500.0,0.00022027,3]
[330619333,1719627062180,-1089.38,0.00022027,3]
[330619334,1719627062189,-1969.82,0.00022027,3]
[330619335,1719627062199,-500.0,0.00022027,3]
[330619336,1719627062211,-531.64,0.00022027,3]
[330619337,1719627062225,-466.09158947,0.00022027,3]
[330619338,1719627062234,-2535.04,0.00022027,3]
[330619339,1719627062244,-809.6,0.00022027,3]
[330619340,1719627062256,-500.0,0.00022027,3]
[330619341,1719627062265,-500.0,0.00022027,3]
[330619342,1719627062275,-501.70597389,0.00022027,3]
[330619343,1719627062285,-500.0,0.00022027,3]
[330619344,1719627062298,-2418.52,0.00022027,3]
[330619345,1719627062310,-505.27,0.00022027,3]
[330619346,1719627062320,-151.0,0.00022027,7]
[330619347,1719627062330,-151.0,0.00022027,7]
[330619348,1719627062339,-152.49428,0.00022027,7]
[330619349,1719627062350,-611.53,0.00022027,3]
[330619350,1719627062360,-500.0,0.00022027,3]
[330619351,1719627062370,-500.0,0.00022027,3]
[330619352,1719627062380,-500.0,0.00022027,3]
[330619353,1719627062390,-1205.95,0.00022027,3]
[330619354,1719627062399,-1205.05,0.00022027,3]
[330619355,1719627062409,-500.0,0.00022027,3]
[330619356,1719627062419,-500.0,0.00022027,3]
[330619357,1719627062430,-500.0,0.00022027,3]
[330619358,1719627062440,-500.0,0.00022027,3]